bitfinex/quotes_ETHUSD_20250721
["timestamp","ask_amount","ask_price","bid_price","bid_amount"]
[1753125487572,2.6595701,3760.1,3759.6,0.583]
[1753125488375,0.55,3760.3,3759.6,0.583]
[1753125488569,3.20937397,3760.3,3759.6,0.583]
[1753125488769,2.65944425,3760.2,3759.6,0.583]
[1753125489074,0.55,3760.3,3759.6,0.583]
[1753125489075,4.754,3760.3,3759.6,0.583]
[1753125489236,0.20108564,3760.5,3759.6,0.583]
[1753125489442,0.1328,3759.7,3759.6,3.69471133]
[1753125490273,0.1328,3759.7,3759.6,3.24281133]
[1753125490480,2.65899439,3760.9,3760.0,2.65956225]
[1753125490775,2.65899439,3760.9,3759.8,2.65971474]
[1753125490776,2.86123638,3760.9,3760.1,3.11140368]
[1753125490942,0.1328,3760.2,3760.1,0.4519]
[1753125491141,0.1328,3760.2,3760.1,0.76305227]
[1753125491397,0.1328,3760.2,3759.6,1.0349]
[1753125491684,0.1328,3760.0,3759.6,1.0349]
[1753125492281,0.1328,3760.0,3759.7,3.11167246]
[1753125492644,2.65978668,3759.7,3759.0,0.4519]
[1753125492843,2.65936228,3760.3,3759.0,0.4519]
[1753125492844,0.1328,3759.4,3759.1,0.583]
[1753125493450,0.1328,3759.4,3759.1,3.24320722]
[1753125493644,0.1328,3759.4,3759.2,0.4519]
[1753125493881,2.65933618,3760.4,3759.6,2.65984062]
[1753125494085,6.86316705,3760.6,3759.6,2.65984062]
[1753125494086,0.1328,3759.9,3759.6,2.65984062]
[1753125494309,0.1328,3759.9,3759.7,2.65977069]
[1753125494578,0.13878072,3761.5,3759.7,2.65977069]
[1753125494579,0.1328,3760.2,3760.1,2.65944321]
[1753125494970,0.1328,3760.2,3760.1,0.4519]
[1753125495173,0.1328,3760.2,3760.1,3.11140373]
[1753125495482,0.1328,3760.2,3759.9,2.65959778]
[1753125495659,0.1328,3760.2,3759.8,3.24270464]
[1753125495982,0.1328,3760.2,3760.0,2.65956967]
[1753125496181,0.1328,3760.2,3759.9,3.111525]
[1753125496478,0.1328,3760.2,3760.0,3.11106398]
[1753125496645,0.1328,3760.2,3760.1,3.11100373]
[1753125496847,0.1328,3760.2,3760.1,6.69400373]
[1753125497046,0.002,3760.5,3760.4,6.24229156]
[1753125497277,0.002,3760.5,3760.4,6.40168447]
[1753125497646,0.002,3760.5,3760.4,6.85318447]
[1753125497949,0.002,3760.5,3760.4,8.19824757]
[1753125503711,0.1328,3760.4,3760.1,2.65943345]
[1753125503873,0.002,3760.5,3760.4,3.11079156]
[1753125504082,0.002,3760.5,3760.4,0.4515]
[1753125504388,0.002,3760.5,3760.3,2.65935565]
[1753125504854,0.002,3760.5,3760.2,6.99422437]
[1753125505082,2.66126376,3760.5,3760.2,4.202]
[1753125505276,2.65929156,3760.4,3760.2,4.202]
[1753125505517,2.65934247,3760.4,3760.2,4.202]
[1753125505690,2.65940767,3760.3,3759.9,4.202]
[1753125505896,2.65937635,3760.3,3759.9,4.202]
[1753125506131,0.1328,3760.0,3759.9,4.202]
[1753125507092,0.1328,3760.0,3759.9,6.8616452]
[1753125507415,0.1348,3760.5,3759.9,7.4459372]
[1753125507712,0.1348,3760.5,3760.0,2.65955464]
[1753125508603,0.1348,3760.5,3760.1,2.65948519]
[1753125508913,0.1348,3760.5,3760.1,0.4515]
[1753125509125,0.1348,3760.5,3760.0,0.02659574]
[1753125509283,0.1348,3760.5,3760.3,2.65932706]
[1753125509478,0.1348,3760.5,3760.3,4.6535]
[1753125509679,0.1348,3760.5,3760.3,7.31284622]
[1753125510080,0.1348,3760.5,3760.3,4.6535]
[1753125510432,0.1348,3760.5,3760.3,4.202]
[1753125515428,0.002,3760.5,3760.4,6.82659156]
[1753125516821,1e-08,3760.5,3760.4,18.20761774]
[1753125517322,1e-08,3760.5,3760.4,7.37659156]
[1753125517519,1e-08,3760.5,3760.4,9.13493959]
[1753125522700,1e-08,3760.5,3760.4,13.82493959]
[1753125525397,1e-08,3760.5,3760.4,19.91303759]
[1753125525899,1e-08,3760.5,3760.4,18.02362359]
[1753125526639,1e-08,3761.3,3761.2,3.79172593]
[1753125526804,1e-08,3761.3,3761.2,19.12071288]
[1753125526994,1e-08,3761.3,3761.2,19.67772563]
[1753125529933,1e-08,3761.3,3761.2,24.36772563]
[1753125530229,1e-08,3761.3,3761.2,27.15972563]
[1753125530535,1e-08,3761.3,3761.2,29.78725956]
[1753125535149,1e-08,3761.3,3761.2,5.86925986]
[1753125535451,0.45390001,3761.3,3761.2,2.65872593]
[1753125535612,0.45390001,3761.3,3761.2,9.85472593]
[1753125536145,0.45390001,3761.3,3761.2,7.196]
[1753125536345,0.45390001,3761.3,3761.2,4.196]
[1753125536913,3.88515526,3761.3,3761.2,4.196]
[1753125537148,4.53952714,3761.3,3760.7,3.0]
[1753125537450,0.4539,3761.2,3760.8,4.22259008]
[1753125538245,4.08562714,3761.3,3760.8,4.22259008]
[1753125538246,0.4539,3761.1,3761.0,2.65886732]
[1753125538544,0.4539,3761.1,3761.0,4.196]
[1753125540327,2.65886732,3761.0,3760.4,0.001]
[1753125540531,0.7625,3760.5,3760.4,0.001]
[1753125540730,3.42172084,3760.5,3760.4,4.197]
[1753125541039,3.87562084,3760.5,3760.4,4.197]
[1753125541351,3.87562084,3760.5,3760.4,0.001]
[1753125542156,0.7625,3759.7,3759.6,4.197]
[1753125542455,1.2164,3759.7,3759.6,4.197]
[1753125543036,1.2164,3759.7,3759.6,0.001]
[1753125543237,3.87618668,3759.7,3758.9,0.001]
[1753125543460,0.7625,3759.7,3759.1,5.66020365]
[1753125543647,0.4539,3759.6,3759.2,2.66010146]
[1753125543971,0.7625,3759.7,3759.4,3.0]
[1753125544285,0.7625,3760.0,3759.9,2.6596452]
[1753125544442,0.7625,3760.0,3759.9,6.8556452]
[1753125544634,0.7625,3760.4,3759.9,4.196]
[1753125544837,1.2164,3760.8,3760.7,2.65907942]
[1753125545060,1.2164,3760.8,3760.6,2.65914905]
[1753125545263,0.4539,3760.7,3760.6,2.65914905]
[1753125545864,0.7954,3760.6,3760.4,0.1328]
[1753125546064,0.1328,3760.4,3759.7,2.65978668]
[1753125546297,0.1328,3759.7,3759.3,6.85503492]
[1753125546465,0.9282,3759.7,3759.6,2.66085743]
[1753125546665,0.7954,3759.7,3759.6,2.66085743]
[1753125546867,1.2493,3759.7,3759.6,0.001]
[1753125547480,1.2493,3759.7,3759.6,4.196]
[1753125547682,1.2493,3759.7,3759.6,6.85585743]
[1753125548376,0.7928,3760.2,3760.1,2.65950373]
[1753125548544,0.7928,3760.2,3760.1,6.85450373]
[1753125548741,0.1328,3760.6,3760.4,2.65926963]
[1753125548742,0.7928,3760.6,3760.4,2.65926963]
[1753125548974,2.65962312,3760.0,3759.6,0.001]
[1753125549176,0.7928,3759.9,3759.6,0.001]
[1753125549363,0.1328,3759.7,3759.6,0.001]
[1753125549747,0.7928,3759.9,3759.6,0.001]
[1753125549748,1.2467,3759.9,3759.6,6.85685743]
[1753125550056,1.2467,3759.9,3759.6,4.197]
[1753125550264,0.4539,3759.8,3759.6,0.001]
[1753125550461,0.4539,3759.8,3759.6,4.197]
[1753125550663,0.4539,3759.7,3759.6,4.197]
[1753125551655,0.7928,3759.9,3759.7,2.65973643]
[1753125551850,0.7928,3759.9,3759.6,6.85684688]
[1753125552049,0.4539,3759.8,3759.6,4.197]
[1753125552250,0.4539,3759.8,3759.6,6.85685621]
[1753125552550,0.4539,3759.8,3759.6,4.197]
[1753125552985,0.4539,3759.8,3759.6,0.001]
[1753125553277,0.7928,3759.9,3759.7,4.196]
[1753125553582,0.7928,3759.9,3759.7,6.85577767]
[1753125553814,1.2467,3759.9,3759.7,6.85577767]
[1753125553990,1.2467,3759.9,3759.8,2.65971594]
[1753125554156,1.2467,3759.9,3759.7,6.85576357]
[1753125554355,1.2467,3759.9,3759.7,4.196]
[1753125554796,0.4539,3759.8,3759.7,4.196]
[1753125555108,0.1328,3760.0,3759.7,4.196]
[1753125555292,2.6593998,3760.3,3759.7,4.196]
[1753125555458,0.4539,3759.9,3759.7,4.196]
[1753125555659,0.4539,3759.8,3759.7,4.196]
[1753125556062,1.2327,3759.8,3759.7,4.196]
[1753125558673,3.46948668,3759.7,3759.6,0.001]
[1753125558981,3.46948668,3759.7,3758.9,0.001]
[1753125558982,3.46998198,3759.0,3758.9,0.001]
[1753125559373,1.44346471,3759.0,3758.9,0.001]
[1753125559574,4.10374669,3759.0,3758.9,0.001]
[1753125560989,1.24,3759.0,3758.9,0.001]
[1753125565222,1.89603348,3759.0,3758.9,0.001]
[1753125565378,4.55631546,3759.0,3758.9,0.001]
[1753125565718,1.89603348,3759.0,3758.9,0.001]
[1753125568618,3.90028198,3759.0,3758.9,0.001]
[1753125569417,8.09628198,3759.0,3758.9,0.001]
[1753125569615,8.09628198,3759.0,3758.8,0.001]
[1753125569616,3.42471908,3758.1,3758.0,0.001]
[1753125570284,3.85501908,3758.1,3758.0,0.001]
[1753125570485,2.26517995,3758.1,3758.0,0.001]
[1753125570924,4.92609903,3758.1,3758.0,0.001]
[1753125571787,2.26517995,3758.1,3758.0,0.001]
[1753125572009,3.85501908,3758.1,3758.0,0.001]
[1753125575261,6.85501908,3758.1,3758.0,1e-08]
[1753125576432,11.05101908,3758.1,3758.0,1e-08]
[1753125576993,3.85501908,3758.1,3758.0,1e-08]
[1753125577236,8.05101908,3758.1,3758.0,1e-08]
[1753125577546,8.05001908,3758.1,3758.0,1e-08]
[1753125577751,9.42120458,3758.1,3758.0,1e-08]
[1753125579031,12.42120458,3758.1,3758.0,1e-08]
[1753125580733,12.97120458,3758.1,3758.0,1e-08]
[1753125581045,12.97120458,3758.1,3756.9,0.001]
[1753125581046,3.45699816,3757.0,3756.9,0.001]
[1753125581251,10.65199816,3757.0,3756.9,0.001]
[1753125581435,11.63229816,3757.0,3756.9,0.001]
[1753125581749,22.45884276,3757.0,3756.9,1e-08]
[1753125582550,0.55,3756.7,3755.0,0.584]
[1753125582853,0.55,3756.7,3755.1,0.91137945]
[1753125582854,0.1328,3755.4,3755.1,0.91137945]
[1753125583053,0.1328,3755.4,3755.1,1.0432]
[1753125583266,2.66310621,3755.1,3754.5,0.584]
[1753125583412,0.1328,3754.7,3754.1,0.584]
[1753125583614,2.79617902,3754.7,3754.1,0.584]
[1753125583816,2.66340623,3754.6,3754.1,0.584]
[1753125584113,0.1328,3754.3,3753.7,0.1328]
[1753125584314,0.1328,3754.0,3753.7,1.01785248]
[1753125584517,0.1328,3754.0,3753.7,0.43385248]
[1753125584727,7.63661013,3754.8,3753.9,2.66384585]
[1753125584948,0.1328,3754.3,3753.9,2.66384585]
[1753125585316,0.4303,3754.3,3753.5,2.6738468]
[1753125585551,0.1328,3754.1,3753.5,2.67388856]
[1753125585733,2.66369262,3754.2,3753.3,0.584]
[1753125586049,0.7664,3753.5,3753.1,0.02664464]
[1753125586274,0.7664,3753.5,3752.3,0.584]
[1753125586420,4.196,3754.1,3752.3,0.584]
[1753125586421,0.7664,3753.4,3752.5,3.0]
[1753125586615,3.13737251,3753.8,3752.5,3.0]
[1753125586616,0.4734,3753.8,3752.9,3.24854026]
[1753125586815,3.13742565,3753.8,3752.9,0.584]
[1753125587018,0.4734,3753.8,3752.9,3.24858827]
[1753125587315,2.66446056,3753.2,3752.9,0.95533365]
[1753125587530,2.66453503,3753.0,3752.2,2.66504682]
[1753125587746,1.2398,3753.1,3751.9,0.4381]
[1753125587747,0.7664,3753.1,3752.3,0.02665032]
[1753125587916,4.9624,3753.5,3752.4,0.584]
[1753125588118,7.62658292,3753.5,3752.8,2.6646702]
[1753125588341,4.196,3754.0,3752.9,0.46474606]
[1753125588555,3.4734,3753.9,3752.5,4.196]
[1753125588723,0.7664,3753.6,3752.0,0.584]
[1753125589052,2.66425107,3753.4,3752.0,4.781]
[1753125589262,2.66496671,3752.4,3751.9,4.197]
[1753125589465,0.7664,3753.2,3751.9,4.198]
[1753125589466,0.4734,3752.8,3751.9,4.198]
[1753125589762,1.05300875,3755.0,3752.0,16.89070876]
[1753125589915,0.4734,3755.9,3754.8,0.584]
[1753125590320,0.7664,3756.1,3755.2,2.66291037]
[1753125590520,0.7664,3756.1,3755.0,2.68973062]
[1753125590718,0.4734,3756.0,3754.8,0.584]
[1753125590917,0.4734,3756.0,3754.3,0.584]
[1753125591227,0.7664,3755.1,3753.8,0.584]
[1753125591433,0.7664,3754.9,3753.6,0.02664109]
[1753125591635,2.66346881,3754.6,3753.4,2.66419652]
[1753125591857,2.66346881,3754.6,3750.3,0.32684413]
[1753125591858,4.25554144,3754.4,3750.3,0.32684413]
[1753125592030,4.25554144,3754.4,3750.1,0.4381]
[1753125592031,8.14596732,3752.6,3750.1,0.4381]
[1753125592222,0.7664,3752.9,3750.1,0.4381]
[1753125592223,1.28497562,3752.5,3750.1,0.4381]
[1753125592418,0.0266441,3752.5,3752.1,2.66515072]
[1753125592662,0.5766441,3752.8,3751.0,4.572]
[1753125592967,0.4734,3752.8,3751.1,0.4381]
[1753125593174,0.0266441,3752.7,3751.5,2.66558145]
[1753125593324,2.66489072,3752.5,3751.6,0.02665529]
[1753125593529,0.0266441,3752.4,3751.1,0.4381]
[1753125593750,0.4734,3752.3,3750.7,0.6482]
[1753125594055,2.66588911,3751.1,3750.2,0.6482]
[1753125594260,0.0266441,3751.0,3750.2,0.6482]
[1753125594435,2.66589534,3751.1,3750.2,0.6482]
[1753125594636,0.0266441,3751.0,3750.2,3.31471975]
[1753125594832,0.0266441,3751.3,3750.3,2.69311788]
[1753125595037,0.0266441,3751.8,3750.3,0.02666453]
[1753125595253,0.4734,3751.7,3750.3,0.02666453]
[1753125595460,0.0266441,3751.6,3750.3,0.02666453]
[1753125595626,2.66588797,3751.1,3750.3,0.02666453]
[1753125595828,0.0266441,3751.0,3750.3,2.66645335]
[1753125596029,0.1328,3750.7,3750.2,0.67486524]
[1753125596344,0.0266441,3751.0,3749.7,0.6482]
[1753125596657,3.90584246,3750.9,3749.4,0.4381]
[1753125596862,3.90584246,3750.9,3749.2,0.6482]
[1753125596863,0.1328,3749.7,3749.2,0.67487235]
[1753125597059,0.0266441,3750.8,3748.6,0.6482]
[1753125597351,0.7664,3749.4,3748.7,0.1328]
[1753125597553,2.66731716,3749.1,3748.7,0.1328]
[1753125597885,0.5000441,3749.0,3748.7,0.1328]
[1753125598243,0.5000441,3749.0,3747.6,0.46478374]
[1753125598244,0.0266441,3749.0,3747.6,0.46478374]
[1753125598543,2.66747448,3748.9,3747.6,0.4381]
[1753125598745,0.0266441,3748.8,3748.1,2.66796111]
[1753125599050,0.0266441,3749.0,3748.1,2.66799121]
[1753125599246,0.4734,3748.9,3747.7,0.50191]
[1753125599446,2.69421083,3748.8,3747.7,0.50191]
[1753125599647,0.0266441,3748.8,3747.7,0.50191]
[1753125599851,0.0266441,3748.8,3747.8,0.02668232]
[1753125600031,0.8156,3748.8,3747.8,4.582]
[1753125600227,2.69424359,3748.7,3747.9,4.582]
[1753125600426,0.0266441,3748.7,3748.0,4.583]
[1753125600672,0.0266441,3748.7,3747.9,4.582]
[1753125600839,1.48846468,3748.9,3748.0,3.48488089]
[1753125601023,1.48846468,3748.9,3748.8,2.66752027]
[1753125601227,0.0266441,3749.9,3748.8,0.4381]
[1753125601428,2.66674232,3749.9,3748.3,1.0863]
[1753125601661,2.66708877,3749.5,3748.3,0.6482]
[1753125601826,0.29335298,3749.4,3748.5,3.0]
[1753125602026,0.4734,3749.3,3747.8,1.0863]
[1753125602227,0.0266441,3749.2,3747.9,2.6947848]
[1753125602427,0.0266441,3749.2,3747.9,0.0266816]
[1753125602662,2.66792033,3748.3,3747.5,6.395]
[1753125602864,0.0266441,3748.2,3747.6,7.585]
[1753125603065,0.0266441,3748.7,3747.6,3.58582922]
[1753125603273,0.0266441,3748.7,3747.7,4.585]
[1753125603569,2.69425515,3748.7,3747.9,2.66816083]
[1753125603771,0.0266441,3748.7,3747.8,4.584]
[1753125603970,2.69419919,3748.8,3747.9,2.6680947]
[1753125604140,0.34881992,3748.7,3747.9,4.581]
[1753125604338,0.0266441,3748.6,3747.6,4.583]
[1753125604540,0.0266441,3748.8,3748.1,2.66801527]
[1753125604845,0.0266441,3748.7,3747.9,0.4647816]
[1753125605065,0.4734,3749.4,3747.9,0.4647816]
[1753125605066,2.66731528,3749.1,3748.2,2.66789401]
[1753125605246,0.0266441,3749.0,3747.9,0.4381]
[1753125605444,2.66723567,3749.2,3747.9,1.24021]
[1753125605663,2.69397348,3749.1,3748.3,2.66784757]
[1753125605839,0.0266441,3749.1,3747.9,3.93504857]
[1753125606045,2.66737796,3749.0,3748.3,4.591]
[1753125606387,2.69410353,3748.9,3748.3,4.591]
[1753125606536,0.0266441,3748.9,3748.4,2.66780128]
[1753125606735,2.66739826,3749.0,3748.3,4.591]
[1753125606985,2.69409829,3748.9,3748.3,4.591]
[1753125607186,0.0266441,3748.9,3748.3,4.591]
[1753125607352,0.7755,3748.8,3747.8,4.584]
[1753125607540,0.0266441,3748.9,3748.4,2.66776092]
[1753125607744,0.7755,3750.7,3748.6,9.34416732]
[1753125607936,0.7755,3751.2,3749.6,0.55]
[1753125608140,0.800825,3751.5,3750.3,2.66639433]
[1753125608361,0.1328,3750.9,3750.6,2.66620447]
[1753125608573,0.1328,3750.9,3750.8,2.66609789]
[1753125608775,0.800825,3751.5,3750.7,0.4381]
[1753125608952,0.1328,3751.6,3750.8,0.43529097]
[1753125609146,0.1328,3751.6,3751.5,2.66560042]
[1753125609351,0.1328,3751.8,3751.5,7.2575295]
[1753125609580,0.1328,3751.8,3751.6,2.66552633]
[1753125609780,0.1328,3751.8,3751.7,2.66545832]
[1753125609978,0.1328,3752.1,3751.6,0.02665529]
[1753125610751,2.66461894,3752.9,3751.6,0.50180082]
[1753125610966,0.1328,3752.4,3751.8,0.781]
[1753125611168,0.1328,3752.8,3752.2,0.1328]
[1753125611487,0.1328,3752.8,3752.3,4.61165032]
[1753125611713,0.1328,3752.8,3752.7,2.66474804]
[1753125611854,0.1328,3753.2,3752.8,2.6646653]
[1753125612053,0.7725,3753.7,3753.0,2.66449911]
[1753125612255,0.1328,3753.5,3753.1,7.24839697]
[1753125612514,0.1328,3753.5,3753.2,0.6482]
[1753125613388,0.1328,3753.5,3753.1,4.61064464]
[1753125613692,2.66354716,3754.4,3753.2,4.58]
[1753125613693,0.4734,3753.9,3753.2,4.58]
[1753125613859,0.0266441,3753.8,3753.2,4.58]
[1753125614055,0.1328,3753.3,3753.2,4.58]
[1753125615602,0.0266441,3754.2,3753.2,4.58]
[1753125615893,0.1328,3753.5,3753.2,4.58]
[1753125616455,2.79698667,3753.5,3753.2,4.58]
[1753125616755,2.66439305,3753.2,3753.0,4.564]
[1753125616951,2.69113389,3753.1,3752.4,0.02664961]
[1753125617180,2.69113389,3753.1,3752.5,4.564]
[1753125617587,0.0266441,3753.1,3752.5,7.22887307]
[1753125617806,2.69104276,3753.2,3752.5,7.22887307]
[1753125618127,2.980983,3753.1,3752.6,4.561]
[1753125618334,0.31651428,3753.1,3752.6,4.561]
[1753125618502,0.34315838,3753.1,3752.6,4.561]
[1753125619092,0.0266441,3753.1,3752.6,4.561]
[1753125620930,0.0266441,3753.2,3752.6,4.561]
[1753125621101,0.0266441,3753.2,3752.6,7.2258098]
[1753125621501,0.0266441,3753.2,3752.6,7.22579579]
[1753125621698,2.66425107,3753.4,3752.6,4.561]
[1753125621889,0.8204,3753.7,3752.6,4.561]
[1753125621890,0.0266441,3753.7,3752.7,3.02664748]
[1753125622217,2.6904133,3754.1,3752.7,6.7629053]
[1753125622421,2.66382525,3754.0,3753.3,2.66430082]
[1753125622622,0.0266441,3753.9,3753.4,4.542]
[1753125622822,1.53467287,3754.2,3753.5,2.690759]
[1753125622823,0.8183,3754.2,3753.5,2.690759]
[1753125623001,0.8183,3754.2,3753.6,0.02664109]
[1753125623197,0.0266441,3754.4,3753.6,0.02664109]
[1753125623400,2.66381027,3754.1,3753.6,0.02664109]
[1753125623720,2.66361239,3754.3,3753.6,2.69073674]
[1753125623952,0.0266441,3754.2,3753.6,0.02664109]
[1753125624121,0.0266441,3754.2,3753.5,0.0266418]
[1753125624331,0.0266441,3754.6,3753.8,2.66391165]
[1753125624626,2.66359068,3754.4,3753.9,4.534]
[1753125624797,0.8449441,3754.7,3753.9,4.56063896]
[1753125625129,2.66355389,3754.4,3753.9,4.56063896]
[1753125625828,2.66348794,3754.5,3753.9,4.56063896]
[1753125626132,2.66361239,3754.3,3753.2,0.6482]
[1753125626432,2.66410159,3753.7,3753.3,4.527]
[1753125626794,2.66440311,3753.2,3753.0,0.1328]
[1753125626993,0.1328,3753.3,3752.7,0.1328]
[1753125627194,2.66439305,3753.2,3752.8,4.526]
[1753125627435,0.1328,3753.3,3752.8,4.526]
[1753125627436,2.79713546,3753.3,3752.8,4.526]
[1753125628001,2.66446593,3753.1,3752.8,4.526]
[1753125628509,2.79714342,3753.3,3752.8,4.526]
[1753125628906,0.1328,3753.3,3752.8,4.526]
[1753125629231,2.79713623,3753.3,3752.8,4.55264677]
[1753125629529,0.1328,3753.3,3752.8,4.55264677]
[1753125630231,2.7971412,3753.3,3752.8,4.55264677]
[1753125630433,2.7971412,3753.3,3752.8,4.526]
[1753125631136,2.7971412,3753.3,3752.8,4.55264677]
[1753125631442,0.1328,3753.3,3752.8,4.55264677]
[1753125631734,2.79718113,3753.3,3752.8,4.55264677]
[1753125632419,2.79718113,3753.3,3752.8,3.02664677]
[1753125632420,0.1328,3753.3,3752.8,3.02664677]
[1753125632624,0.7503,3754.3,3753.2,2.66439305]
[1753125632825,0.1328,3753.8,3753.4,2.66419905]
[1753125633137,0.7769441,3754.3,3753.5,4.9918418]
[1753125633138,0.1328,3754.0,3753.5,4.9918418]
[1753125633300,2.66389658,3753.9,3753.5,4.5286418]
[1753125633500,2.66389658,3753.9,3753.0,0.4632]
[1753125633501,0.0266441,3753.8,3752.6,3.77621852]
[1753125633737,0.0266441,3753.8,3752.9,0.1328]
[1753125633738,2.66426499,3753.4,3752.9,0.1328]
[1753125634308,2.66426499,3753.4,3753.0,0.02664535]
[1753125634539,0.1328,3753.5,3753.0,0.02664535]
[1753125634945,2.79698155,3753.5,3753.0,0.02664535]
[1753125637141,0.1328,3753.5,3753.0,0.02664535]
[1753125637344,2.66425107,3753.4,3753.0,0.02664535]
[1753125639147,2.66425107,3753.4,3753.1,4.481]
[1753125639358,3.0425653,3753.5,3753.1,4.481]
[1753125639645,2.79699527,3753.5,3753.1,4.481]
[1753125639846,3.04257217,3753.5,3753.1,4.481]
[1753125640018,3.27109527,3753.5,3753.1,4.481]
[1753125640609,3.04274233,3753.5,3753.1,4.481]
[1753125640848,0.1328,3753.5,3753.1,4.481]
[1753125641211,0.1328,3753.5,3753.1,7.60865528]
[1753125641438,0.1328,3753.5,3753.1,4.9442]
[1753125641652,0.1328,3753.5,3753.2,2.6643856]
[1753125641933,0.1328,3753.5,3753.1,4.481]
[1753125642459,0.1328,3753.9,3753.4,2.66423227]
[1753125642613,0.37864223,3753.9,3753.5,4.4936418]
[1753125642957,0.24584223,3754.4,3754.0,2.66381267]
[1753125643245,2.79636602,3754.4,3754.1,4.467]
[1753125643446,0.1328,3754.4,3754.1,4.467]
[1753125643833,0.1328,3754.4,3754.1,7.13069298]
[1753125644148,2.7963946,3754.4,3754.1,4.467]
[1753125644446,2.7963946,3754.4,3753.8,0.1328]
[1753125644447,2.7963946,3754.4,3753.8,0.15943967]
[1753125644637,2.7963946,3754.4,3754.2,4.464]
[1753125644811,0.0266441,3754.3,3753.8,0.1328]
[1753125645013,0.4741,3754.2,3753.7,4.461]
[1753125645272,2.66403814,3753.7,3752.8,0.6482]
[1753125645411,2.66470545,3752.8,3752.1,2.66512563]
[1753125645735,2.66470545,3752.8,3752.4,0.1328]
[1753125646056,2.66489007,3752.5,3752.4,0.1328]
[1753125646255,2.66516364,3752.2,3751.9,6.393]
[1753125646487,0.1328,3752.4,3751.8,0.1328]
[1753125646774,2.66566729,3751.5,3751.1,0.001]
[1753125647050,0.1328,3751.4,3751.2,4.458]
[1753125647414,0.1328,3751.4,3751.1,0.001]
[1753125647415,0.1328,3751.4,3751.3,4.458]
[1753125647655,2.79847148,3751.4,3751.1,0.001]
[1753125647826,0.1328,3751.4,3751.3,4.457]
[1753125648942,0.8136,3751.9,3751.3,4.453]
[1753125649144,0.1328,3751.8,3751.3,4.47965742]
[1753125649535,2.79820219,3751.8,3751.3,4.47965742]
[1753125649854,0.1328,3751.8,3751.3,4.47965742]
[1753125650060,2.79820291,3751.8,3751.3,4.453]
[1753125650359,0.1328,3751.8,3751.3,4.453]
[1753125650719,2.79824071,3751.8,3751.3,0.02665742]
[1753125650952,2.79824071,3751.8,3751.4,4.447]
[1753125651148,0.5849,3751.8,3751.4,4.447]
[1753125651448,0.1328,3751.8,3751.4,4.447]
[1753125651960,0.1328,3751.8,3751.5,4.472656]
[1753125652137,0.1328,3751.8,3751.5,4.446]
[1753125652450,0.4521,3751.7,3751.1,0.001]
[1753125652749,0.4521,3751.7,3751.2,4.441]
[1753125652750,2.66569076,3751.4,3751.2,4.441]
[1753125652948,2.6656948,3751.4,3751.1,0.001]
[1753125653159,2.6656948,3751.4,3751.3,4.443]
[1753125653326,2.6658136,3751.2,3751.1,0.001]
[1753125653740,3.1445577,3751.2,3751.1,0.001]
[1753125654565,7.5157577,3751.2,3751.1,0.001]
[1753125654727,6.9391136,3751.2,3751.1,0.001]
[1753125654930,3.9391136,3751.2,3751.1,0.001]
[1753125655156,5.52623823,3751.2,3751.1,0.001]
[1753125655824,4.5657577,3751.2,3751.1,0.001]
[1753125657846,1.4478441,3751.2,3751.1,0.001]
[1753125658045,1.4212,3751.2,3751.1,0.001]
[1753125658442,0.6,3751.2,3751.1,0.001]
[1753125658642,0.7328,3751.2,3751.1,0.001]
[1753125659033,0.7328,3751.2,3751.1,3.10358467]
[1753125659034,0.6,3751.2,3751.1,3.10358467]
[1753125659245,0.6,3751.2,3751.1,0.001]
[1753125659688,0.6,3751.2,3751.1,2.66688467]
[1753125660179,0.6,3751.2,3751.1,0.001]
[1753125660637,0.6,3751.2,3751.1,2.66688467]
[1753125660833,0.1328,3751.5,3751.1,1.41479194]
[1753125661057,0.1328,3751.5,3751.3,2.66569382]
[1753125661371,0.1328,3752.2,3751.4,0.15945671]
[1753125661533,0.1328,3752.4,3751.9,2.66525426]
[1753125661740,0.1328,3752.4,3752.0,2.66520644]
[1753125661961,0.1328,3752.4,3752.1,7.09717266]
[1753125662176,0.1328,3752.4,3752.1,4.432]
[1753125662378,0.1328,3752.6,3752.2,0.46335103]
[1753125662737,0.7997441,3753.4,3752.3,0.4367]
[1753125662942,0.1328,3753.0,3752.5,2.66482941]
[1753125663253,0.1328,3753.0,3752.5,0.4367]
[1753125663576,0.1328,3753.0,3752.5,3.1015785]
[1753125663744,0.1328,3753.0,3752.5,0.4367]
[1753125663935,0.1328,3753.0,3752.5,3.10158789]
[1753125664337,0.1328,3753.0,3752.7,2.66474533]
[1753125664535,0.1328,3753.0,3752.8,4.424]
[1753125664775,0.0266441,3753.6,3752.8,4.424]
[1753125664971,0.1328,3753.2,3752.8,4.424]
[1753125665267,0.1328,3753.2,3752.8,7.08860731]
[1753125665482,0.1328,3753.2,3752.8,4.424]
[1753125665635,0.1328,3753.2,3752.8,4.8607]
[1753125665835,0.1328,3753.2,3752.8,4.88734677]
[1753125666078,2.79723901,3753.2,3752.8,4.424]
[1753125666367,0.1328,3753.2,3752.8,4.424]
[1753125666749,0.1328,3753.2,3752.9,2.6645421]
[1753125667138,0.1328,3753.2,3752.8,4.8607]
[1753125667342,0.1328,3753.2,3752.9,2.66455809]
[1753125667880,0.1328,3753.2,3752.8,4.8607]
[1753125668067,0.1328,3753.2,3752.8,7.55201178]
[1753125668373,0.1328,3753.2,3752.9,2.66460562]
[1753125668579,0.7813,3753.9,3753.1,2.66446404]
[1753125668580,0.0266441,3753.7,3753.1,2.66446404]
[1753125668742,0.1328,3753.5,3753.0,0.02664535]
[1753125669083,0.1328,3753.5,3749.6,1.35265453]
[1753125669084,2.66466489,3752.9,3752.5,4.414]
[1753125669450,0.1328,3752.7,3752.5,4.414]
[1753125671000,2.66488997,3752.6,3752.1,0.1328]
[1753125671199,0.1328,3752.5,3751.9,0.1328]